bitfinex/quotes_ETHUSD_20240721
["timestamp","ask_amount","ask_price","bid_price","bid_amount"]
[1721598647042,1.052,3520.2,3519.9,0.3361702]
[1721598647463,2.8405,3520.5,3519.9,0.3361702]
[1721598647664,2.84035,3520.7,3519.9,0.3361702]
[1721598648110,1.052,3520.3,3519.9,0.3361702]
[1721598648671,2.84044,3520.6,3519.9,0.3361702]
[1721598648969,1.052,3520.2,3520.0,0.36978722]
[1721598652177,5.14067,3520.8,3520.0,3.21065722]
[1721598652485,1.052,3520.4,3520.0,3.21065722]
[1721598654298,1.052,3520.2,3520.0,0.36978722]
[1721598654498,1.052,3520.2,3519.8,2.84103]
[1721598655413,1.052,3520.2,3519.6,5.30743]
[1721598655414,1.052,3520.2,3519.9,2.84098]
[1721598657388,1.052,3520.3,3519.9,2.84098]
[1721598659787,1.052,3520.3,3520.0,2.84089]
[1721598659983,2.295,3520.6,3520.1,0.284089]
[1721598659984,1.052,3520.4,3520.1,0.284089]
[1721598660186,2.295,3520.6,3520.1,0.284089]
[1721598660417,1.052,3520.3,3520.2,2.84074]
[1721598660598,2.279,3521.6,3520.1,2.650389]
[1721598660792,1.052,3521.0,3520.5,2.8405]
[1721598661137,1.052,3521.0,3520.7,2.3663]
[1721598661286,1.052,3521.1,3520.8,2.84026]
[1721598661483,1.052,3521.1,3520.9,2.84012]
[1721598661677,1.052,3521.1,3520.7,5.20661]
[1721598662188,1.052,3521.1,3520.6,0.28405]
[1721598662388,1.052,3521.1,3520.6,3.12445]
[1721598662849,1.052,3521.1,3520.7,0.596487]
[1721598663318,3.0,3522.4,3520.2,2.84074]
[1721598663319,1.052,3520.9,3520.2,2.84074]
[1721598663495,2.3295,3521.0,3520.0,2.84083]
[1721598663496,1.052,3520.7,3520.0,2.84083]
[1721598663717,1.052,3520.7,3520.1,2.84082]
[1721598664022,3.0,3521.6,3520.3,2.84059]
[1721598664023,2.3295,3521.4,3520.3,2.84059]
[1721598664247,1.052,3520.7,3520.3,2.84059]
[1721598664530,1.052,3520.7,3520.2,2.3096]
[1721598666338,1.052,3520.7,3520.2,2.84074]
[1721598666484,1.052,3520.7,3520.3,2.84066]
[1721598666819,1.052,3520.9,3520.3,2.84066]
[1721598668234,2.83998,3521.2,3520.4,2.84055]
[1721598668420,1.052,3520.8,3520.4,2.84055]
[1721598672554,10.31931,3522.0,3520.6,2.4812]
[1721598672717,1.052,3521.6,3520.9,2.84017]
[1721598672909,1.052,3521.6,3520.9,3.372307]
[1721598673142,1.052,3521.6,3520.4,2.84051]
[1721598673143,1.052,3521.0,3520.4,2.84051]
[1721598674222,1.052,3521.0,3520.0,5.4812]
[1721598674435,1.052,3521.0,3520.2,2.8407]
[1721598674436,3.8921,3521.0,3520.2,2.8407]
[1721598674825,1.052,3520.8,3520.2,2.84068]
[1721598677152,1.052,3520.8,3520.3,2.84064]
[1721598677447,1.052,3520.8,3520.4,0.284064]
[1721598678761,2.382,3520.9,3520.4,0.284064]
[1721598679079,2.382,3520.9,3520.4,3.124624]
[1721598680479,1.052,3521.0,3520.4,3.124624]
[1721598681445,8.532,3521.4,3520.9,2.84016]
[1721598681737,8.532,3521.4,3521.0,2.84009]
[1721598681942,8.532,3521.4,3520.7,2.84033]
[1721598681943,8.532,3521.4,3520.8,2.84022]
[1721598682159,8.532,3521.4,3521.0,2.84009]
[1721598682661,1.052,3521.4,3521.0,2.84009]
[1721598683599,1.052,3521.4,3521.1,2.83995]
[1721598683753,1.052,3521.4,3521.2,2.83991]
[1721598684195,1.052,3521.4,3521.0,2.84004]
[1721598684354,1.052,3521.2,3521.0,2.84004]
[1721598685063,1.052,3521.2,3521.0,3.4648815]
[1721598685378,7.48,3521.9,3521.1,2.84002]
[1721598685585,1.052,3521.6,3521.4,2.83977]
[1721598685976,1.052,3521.6,3521.2,2.83992]
[1721598686291,1.052,3521.6,3521.5,2.83969]
[1721598686659,1.052,3521.6,3521.5,3.407644]
[1721598687285,1.052,3521.8,3521.5,3.407644]
[1721598688606,2.4247,3522.3,3521.7,2.83952]
[1721598688785,1.052,3522.0,3521.7,2.83952]
[1721598688955,10.31865,3522.8,3521.8,0.3407474]
[1721598689160,10.31865,3522.8,3521.8,2.83943]
[1721598689161,1.052,3522.1,3521.8,2.83943]
[1721598691000,1.052,3522.3,3521.9,2.83936]
[1721598692563,1.052,3522.3,3521.7,2.83949]
[1721598693033,1.052,3521.9,3521.2,2.83989]
[1721598693176,1.052,3521.7,3521.3,3.801856]
[1721598693367,1.052,3521.7,3521.3,0.801856]
[1721598701983,1.052,3521.5,3521.2,3.0]
[1721598702184,1.052,3521.5,3520.9,3.0]
[1721598702185,2.3215,3521.4,3520.9,3.0]
[1721598702513,1.052,3521.5,3520.9,3.0]
[1721598702823,1.052,3521.5,3520.9,0.584041]
[1721598703632,1.052,3521.3,3520.9,0.584041]
[1721598704211,1.052,3521.3,3520.9,3.584041]
[1721598704411,1.052,3521.3,3520.9,0.584041]
[1721598705716,1.052,3521.4,3520.9,0.584041]
[1721598711232,1.052,3521.2,3520.6,2.84041]
[1721598711442,1.052,3521.2,3520.5,2.2672]
[1721598711443,3.89201,3521.2,3520.7,3.0]
[1721598711611,3.89201,3521.2,3520.5,5.2672]
[1721598712737,2.84001,3521.2,3520.5,5.2672]
[1721598713061,1.052,3521.1,3520.5,8.10768]
[1721598713238,1.052,3521.1,3520.5,9.0520544]
[1721598713720,1.052,3521.1,3520.6,2.84042]
[1721598713921,7.48,3521.6,3520.8,2.84026]
[1721598714246,1.052,3521.4,3520.8,5.33296]
[1721598714417,1.052,3521.4,3521.1,2.83994]
[1721598714742,1.052,3521.4,3520.8,2.84026]
[1721598715611,7.48,3521.6,3521.0,2.3692]
[1721598715936,7.48,3521.6,3520.9,0.832446]
[1721598715937,1.052,3521.3,3520.9,0.832446]
[1721598718310,2.4275,3521.2,3520.9,0.832446]
[1721598718536,1.052,3521.3,3520.9,0.832446]
[1721598718841,1.052,3521.1,3520.9,2.358]
[1721598719045,1.052,3521.1,3520.8,2.84026]
[1721598722146,1.052,3521.3,3520.8,2.84026]
[1721598724038,0.052,3521.3,3520.9,2.84016]
[1721598728327,2.3973,3521.4,3520.9,2.84016]
[1721598728533,10.31964,3521.6,3520.9,2.84016]
[1721598728872,1.052,3521.4,3520.9,2.84016]
[1721598729658,1.052,3521.4,3520.7,5.84034]
[1721598729659,2.3152,3520.9,3520.7,3.0]
[1721598729859,2.83996,3521.2,3520.5,3.0]
[1721598730069,1.052,3520.9,3520.5,3.0]
[1721598730427,1.052,3521.1,3520.5,3.0]
[1721598730753,1.052,3521.1,3520.6,2.84035]
[1721598730951,1.052,3521.1,3520.7,3.0]
[1721598731975,2.83987,3521.3,3520.7,3.0]
[1721598732141,2.83987,3521.3,3520.5,2.84049]
[1721598732142,1.052,3521.0,3520.6,3.0]
[1721598733541,1.052,3521.0,3520.7,2.3801]
[1721598733738,1.052,3521.0,3520.7,3.202159]
[1721598734144,8.36579876,3521.6,3520.7,3.202159]
[1721598734362,1.052,3521.2,3520.7,3.202159]
[1721598734561,1.052,3521.2,3521.0,2.84003]
[1721598734969,1.052,3521.2,3521.1,3.0]
[1721598735484,1.052,3521.2,3521.1,5.84002]
[1721598736063,2.4029,3521.1,3520.6,2.84036]
[1721598736254,1.052,3520.9,3520.7,3.0]
[1721598738981,1.052,3520.9,3520.7,5.84031]
[1721598741495,1.052,3521.0,3520.9,2.84016]
[1721598744481,0.88579876,3521.5,3520.9,2.84016]
[1721598744676,1.052,3521.1,3520.8,2.84021]
[1721598745182,1.052,3521.1,3520.9,2.84017]
[1721598746861,1.052,3521.1,3521.0,2.8401]
[1721598748137,1.052,3521.2,3521.1,2.84002]
[1721598748308,0.88579876,3521.5,3520.8,2.3]
[1721598748613,1.052,3521.5,3520.9,2.46861148]
[1721598748910,7.48,3521.6,3521.5,2.83969]
[1721598749584,7.48,3521.6,3521.2,2.83987]
[1721598749788,1.052,3521.5,3521.2,2.83987]
[1721598750098,1.052,3521.5,3521.3,0.12813331]
[1721598750801,1.052,3521.5,3521.4,2.83971]
[1721598766243,1.052,3521.5,3521.4,3.1938685]
[1721598766540,1.052,3521.5,3521.4,2.83971]
[1721598767255,1.052,3521.5,3521.3,0.12813331]
[1721598768518,1.052,3521.5,3521.3,2.96791331]
[1721598768920,0.89364216,3522.1,3521.4,2.4572]
[1721598769119,1.052,3522.1,3521.5,0.25853333]
[1721598769347,1.052,3522.1,3521.5,3.25853333]
[1721598769747,1.052,3522.1,3522.0,2.83929]
[1721598770647,1.052,3522.1,3521.9,2.83935]
[1721598770828,1.052,3522.1,3522.0,0.567888]
[1721598772369,1.052,3522.1,3522.0,3.055088]
[1721598772520,1.052,3522.1,3522.0,0.567888]
[1721598772722,0.89364216,3522.7,3522.0,3.407138]
[1721598773034,0.89364216,3522.7,3522.0,0.567888]
[1721598773233,1.052,3522.3,3522.2,2.83913]
[1721598773766,1.052,3522.6,3522.2,2.4872]
[1721598774119,1.052,3522.7,3522.2,2.4872]
[1721598774469,1.052,3522.7,3522.2,5.32632]
[1721598774624,2.83825,3523.3,3522.2,5.32632]
[1721598774821,1.052,3522.6,3522.2,2.83912]
[1721598775041,1.052,3522.4,3522.1,2.83918]
[1721598775227,2.83851,3523.0,3522.2,3.0]
[1721598775450,7.48,3523.1,3522.2,3.0]
[1721598775669,1.052,3522.3,3522.0,3.0]
[1721598775967,2.3415,3523.0,3522.0,3.0]
[1721598775968,1.052,3522.4,3522.1,2.8392]
[1721598776165,5.18,3523.0,3522.0,4.114673]
[1721598776166,5.18,3523.0,3522.2,5.83909]
[1721598776459,1.052,3522.8,3522.5,2.83881]
[1721598776858,1.052,3522.8,3522.6,2.8388]
[1721598777959,7.48,3523.1,3522.4,2.83897]
[1721598778192,1.052,3522.9,3522.6,2.8388]
[1721598778476,2.83824,3523.4,3522.5,0.530687]
[1721598778655,1.052,3522.9,3522.5,3.530687]
[1721598779025,2.838,3523.6,3522.7,2.8387]
[1721598779463,1.052,3522.9,3522.7,2.8387]
[1721598779655,1.052,3522.9,3522.7,3.706457]
[1721598780034,1.052,3522.9,3522.8,2.83865]
[1721598780363,1.052,3522.9,3522.7,0.867757]
[1721598780522,1.052,3522.9,3522.7,6.706467]
[1721598781952,1.052,3522.9,3522.7,3.0]
[1721598782123,1.052,3522.9,3522.2,2.83906]
[1721598782124,1.052,3522.9,3522.5,2.83888]
[1721598782448,1.052,3522.7,3522.6,5.83881]
[1721598782824,5.2647,3523.4,3522.6,5.83881]
[1721598783030,1.052,3522.9,3522.6,5.83881]
[1721598783254,1.052,3522.9,3522.6,6.706595]
[1721598783580,1.052,3522.9,3522.6,3.706595]
[1721598784575,1.052,3522.9,3522.7,5.27242]
[1721598785679,2.4265,3523.7,3522.7,5.27242]
[1721598785680,1.052,3523.0,3522.7,2.4337]
[1721598785972,1.052,3523.0,3522.9,2.83851]
[1721598786277,1.052,3523.0,3522.9,3.7363885]
[1721598786508,7.48,3523.8,3522.9,0.8978785]
[1721598786782,1.052,3523.6,3523.1,2.83839]
[1721598786970,1.052,3523.6,3523.2,3.0]
[1721598787151,7.48,3523.8,3523.3,2.83824]
[1721598787459,14.8127,3524.6,3523.5,2.83808]
[1721598787460,1.052,3523.6,3523.5,2.83808]
[1721598787776,1.052,3523.6,3523.5,3.405712]
[1721598788875,2.83728,3524.5,3523.6,2.838]
[1721598789063,1.052,3523.8,3523.6,2.838]
[1721598790049,1.052,3523.8,3523.5,0.567632]
[1721598790258,2.83744,3524.3,3523.5,3.405702]
[1721598790585,2.83728,3524.5,3523.6,3.4623542]
[1721598790898,1.052,3524.0,3523.6,0.6243942]
[1721598791378,1.052,3524.0,3523.6,3.6243942]
[1721598791944,1.052,3523.8,3523.6,3.0]
[1721598792270,1.052,3523.8,3523.3,2.83824]
[1721598792271,1.052,3523.8,3523.4,3.0]
[1721598792586,2.83747,3524.3,3523.4,5.2913]
[1721598792749,1.052,3523.8,3523.4,8.12945]
[1721598793181,1.052,3523.6,3523.4,3.0]
[1721598793381,1.052,3523.6,3523.0,2.2913]
[1721598793680,2.83778,3523.9,3523.1,0.512992]
[1721598793885,1.052,3523.6,3523.1,0.512992]
[1721598794611,1.052,3523.6,3523.2,2.83832]
[1721598795141,1.052,3523.6,3523.1,0.512992]
[1721598795342,2.83753,3524.2,3523.1,3.512992]
[1721598795661,2.83753,3524.2,3523.2,3.7025952]
[1721598795662,1.052,3523.6,3523.2,3.7025952]
[1721598795844,2.83753,3524.2,3523.3,2.83823]
[1721598796043,1.052,3523.8,3523.4,3.0]
[1721598796777,1.052,3523.8,3523.4,5.83816]
[1721598797241,2.83736,3524.4,3523.4,5.83816]
[1721598797596,1.052,3523.9,3523.5,0.67024452]
[1721598798085,1.052,3523.9,3523.5,3.50829452]
[1721598798305,1.052,3523.9,3523.6,2.83799]
[1721598798802,1.052,3523.9,3523.5,0.67024452]
[1721598798803,1.052,3523.7,3523.4,3.0]
[1721598799002,2.83766,3524.1,3523.3,3.0]
[1721598799003,1.052,3523.5,3523.3,3.0]
[1721598799224,1.052,3523.5,3522.8,2.83865]
[1721598799367,1.052,3523.3,3523.0,2.83846]
[1721598799969,1.052,3523.3,3522.8,2.83865]
[1721598800213,1.052,3523.3,3522.6,5.3148]
[1721598800370,1.052,3523.1,3522.6,5.3148]
[1721598800704,1.052,3523.1,3522.7,0.53148]
[1721598801202,1.052,3523.1,3522.7,3.37018]
[1721598801375,1.052,3523.1,3522.7,2.8387]
[1721598801577,1.052,3523.1,3522.6,5.31477]
[1721598802122,1.052,3523.1,3522.7,2.83869]
[1721598802484,1.052,3523.1,3522.8,3.0]
[1721598804913,1.052,3523.1,3522.9,2.83852]
[1721598805422,1.052,3523.1,3522.8,3.0]
[1721598805766,1.052,3523.1,3522.8,5.83864]
[1721598807015,1.052,3522.9,3522.3,2.83905]
[1721598807182,1.052,3522.7,3522.3,2.83905]
[1721598807682,1.052,3522.7,3521.7,2.4103]
[1721598807683,1.052,3522.5,3521.8,2.83944]
[1721598807905,1.052,3522.5,3521.9,2.83934]
[1721598814138,2.83873,3522.7,3521.7,2.83953]
[1721598814139,1.052,3522.3,3522.0,2.83928]
[1721598814336,1.052,3522.3,3521.8,2.83943]
[1721598815028,1.052,3522.3,3521.7,2.83953]
[1721598815372,1.052,3522.3,3522.0,2.83928]
[1721598815570,1.052,3522.5,3522.0,2.83928]
[1721598816066,1.052,3522.5,3521.8,2.83942]
[1721598816939,3.89089,3522.5,3521.7,0.583953]
[1721598817268,3.89089,3522.5,3521.7,3.0]
[1721598817858,1.052,3522.3,3521.7,3.0]
[1721598818065,1.052,3522.3,3521.7,5.83953]
[1721598818261,1.052,3522.3,3521.7,3.0]
[1721598818469,1.052,3522.1,3521.7,3.0]
[1721598818768,1.052,3521.9,3521.3,2.96798331]
[1721598818971,1.052,3521.7,3521.3,0.12813331]
[1721598819135,1.052,3521.5,3521.3,0.12813331]
[1721598820047,3.89171,3521.5,3521.3,0.12813331]
[1721598821200,4.795495,3521.5,3521.3,0.12813331]
[1721598821548,1.955785,3521.5,3521.3,0.12813331]
[1721598822046,4.795485,3521.5,3521.3,0.12813331]
[1721598822246,2.83977,3521.4,3521.3,0.12813331]
[1721598822491,4.795495,3521.5,3521.3,0.12813331]
[1721598822659,3.5499795,3521.4,3521.3,0.12813331]
[1721598823251,0.7102095,3521.4,3521.3,0.12813331]
[1721598825080,1.7622095,3521.4,3521.3,0.12813331]
[1721598825278,1.052,3521.4,3521.3,0.12813331]
[1721598827080,3.89177,3521.4,3521.3,0.12813331]
[1721598829514,1.052,3521.4,3521.3,0.12813331]
[1721598829695,3.89177,3521.4,3521.3,0.12813331]
[1721598831577,1.052,3521.4,3521.3,0.12813331]
[1721598832521,4.511601,3521.4,3521.3,0.12813331]
[1721598833196,2.83932,3522.0,3521.3,0.12813331]
[1721598833415,1.052,3521.4,3521.3,0.12813331]
[1721598833774,5.8388,3522.7,3521.4,2.83977]
[1721598833775,2.4072,3522.4,3521.4,2.83977]
[1721598834012,1.052,3521.7,3521.6,2.83961]
[1721598835603,1.052,3521.7,3521.4,2.83977]
[1721598835783,1.052,3521.7,3521.5,2.83967]
[1721598836784,1.052,3521.7,3521.4,2.83976]
[1721598837083,1.052,3521.7,3521.6,2.83961]
[1721598837618,1.052,3521.7,3521.5,3.29678933]
[1721598837824,2.4516,3521.6,3521.3,0.12813331]
[1721598838114,1.052,3521.4,3521.3,0.12813331]
[1721598849026,7.48,3522.0,3521.3,0.12813331]
[1721598849343,1.052,3521.4,3521.3,0.12813331]
[1721598853543,6.24787,3521.4,3521.3,0.12813331]
[1721598855229,2.3561,3521.4,3521.3,0.12813331]
[1721598855426,1.052,3521.4,3521.3,0.12813331]
[1721598856171,3.89177,3521.4,3521.3,0.12813331]
[1721598856372,4.805981,3521.4,3521.3,0.12813331]
[1721598859543,1.052,3520.6,3519.9,2.77909917]
[1721598859752,1.052,3520.0,3519.9,0.44499917]
[1721598859971,1.052,3520.0,3519.1,1.48173313]
[1721598859972,1.052,3520.0,3519.2,2.84154]
[1721598860173,0.89364216,3520.3,3519.2,2.84154]
[1721598860174,1.052,3519.6,3519.2,2.84154]
[1721598860346,1.052,3519.4,3519.3,2.84147]
[1721598860965,1.052,3519.4,3519.2,2.84153]
[1721598861552,1.052,3519.4,3518.7,5.31949]
[1721598861783,1.052,3519.1,3518.9,2.84178]
[1721598862268,2.515,3519.9,3518.9,2.84178]
[1721598862860,2.84107,3519.8,3518.9,2.84178]
[1721598863071,2.515,3519.9,3519.2,2.84148]
[1721598863491,6.639601,3519.9,3519.0,2.84163]
[1721598863898,2.84107,3519.8,3519.0,2.84163]
[1721598866518,2.84107,3519.8,3519.1,2.84163]
[1721598866718,2.84107,3519.8,3518.9,2.84177]
[1721598866919,2.84107,3519.8,3519.0,3.0]
[1721598868208,2.84107,3519.8,3519.0,5.84169]
[1721598868408,2.515,3519.9,3519.3,2.84147]
[1721598868612,2.515,3519.9,3519.5,2.84129]
[1721598868933,2.515,3519.9,3519.4,2.84132]
[1721598869125,10.32075,3520.2,3519.2,2.3234]
[1721598869126,7.48,3520.2,3519.2,2.3234]
[1721598869327,7.48,3520.2,3520.0,2.84084]
[1721598869641,2.515,3520.6,3519.4,5.16472]
[1721598869837,2.515,3520.6,3520.0,2.84086]
[1721598869993,2.515,3520.6,3520.1,2.3615]
[1721598870199,12.41,3520.7,3520.4,2.84056]
[1721598872240,12.41,3520.7,3520.1,5.20232]
[1721598872411,2.515,3520.6,3520.1,2.3615]
[1721598872600,2.515,3520.6,3519.9,3.0]
[1721598872810,2.515,3520.6,3520.1,2.84082]
[1721598873003,2.515,3520.6,3520.0,2.84089]
[1721598873960,2.515,3520.6,3519.9,5.84098]
[1721598874151,2.515,3520.6,3520.0,0.55]
[1721598876696,2.515,3520.6,3520.0,3.3909]
[1721598877048,2.515,3520.6,3520.0,0.55]
[1721598877489,2.515,3520.6,3520.0,2.84088]
[1721598878925,2.515,3520.6,3519.9,0.55]
[1721598879205,5.35543,3520.6,3519.9,0.55]
[1721598879387,2.515,3520.6,3519.9,3.39097]
[1721598880215,2.515,3520.6,3520.0,2.84089]
[1721598881210,2.515,3520.6,3519.9,4.314192]
[1721598881503,2.515,3520.6,3519.9,3.39098]
[1721598881666,5.35545,3520.6,3519.9,3.39098]
[1721598881875,5.35545,3520.6,3519.9,0.55]
[1721598882380,5.35545,3520.6,3519.9,3.39097]
[1721598882764,2.8405,3520.5,3519.9,0.55]
[1721598882970,2.515,3520.6,3519.9,3.39097]
[1721598884604,5.35543,3520.6,3519.9,3.39097]
[1721598885409,5.35543,3520.6,3519.9,0.55]
[1721598885624,5.35543,3520.6,3519.8,3.39103]
[1721598885625,1.567569,3520.5,3519.8,3.39103]
[1721598886115,7.77193,3520.6,3519.8,3.39103]
[1721598886825,7.77193,3520.6,3519.8,3.20526254]
[1721598887110,2.84051,3520.5,3519.8,3.20526254]
[1721598887282,2.84082,3520.1,3519.4,3.0]
[1721598887614,2.84093,3520.0,3519.2,2.84154]
[1721598887784,5.25751,3519.9,3519.2,2.84154]
[1721598887969,5.25751,3519.9,3518.8,5.21591]
[1721598887970,2.84123,3519.6,3518.8,5.21591]
[1721598888172,2.84115,3519.7,3518.6,0.4454499]
[1721598888545,2.84115,3519.7,3518.8,2.84185]
[1721598888546,1.048,3519.3,3518.8,2.84185]
[1721598888713,1.048,3519.3,3518.8,3.45478299]
[1721598889285,1.048,3519.3,3518.9,2.84178]
[1721598889493,1.048,3519.3,3518.8,0.61293299]
[1721598889680,1.048,3519.3,3518.8,3.61293299]
[1721598890080,1.048,3519.3,3518.8,6.45477299]
[1721598890304,2.84124,3519.6,3518.9,0.97422529]
[1721598890475,2.84124,3519.6,3518.8,6.45477299]
[1721598891715,2.84124,3519.6,3518.9,2.84179]
[1721598892438,15.2525,3519.9,3518.9,2.84179]
[1721598894929,2.84123,3519.6,3518.9,2.84179]
[1721598895249,12.836,3519.9,3519.0,2.469]
[1721598895546,12.836,3519.9,3519.0,5.31069]
[1721598895707,12.836,3519.9,3519.0,6.4872383]
[1721598896313,12.836,3519.9,3519.1,2.84162]
[1721598896720,5.356,3519.9,3519.1,2.84162]
[1721598902372,2.84109,3519.8,3519.1,2.84162]
[1721598905851,2.515,3519.9,3519.2,2.84154]
[1721598906220,4.317899,3519.9,3519.1,2.84162]
[1721598906418,2.84108,3519.8,3519.1,2.84162]
[1721598910258,1.048,3519.2,3519.1,2.84162]
[1721598914320,9.8322,3520.2,3519.5,2.84127]
[1721598914525,1.048,3519.8,3519.7,2.84114]
[1721598914747,1.048,3519.8,3519.7,3.658341]
[1721598915655,1.048,3519.8,3519.7,2.84114]
[1721598918182,7.48,3520.5,3520.1,2.84078]
[1721598918470,1.048,3520.3,3520.2,2.84072]
[1721598919855,2.84002,3521.1,3520.2,0.55]
[1721598919856,1.048,3520.7,3520.2,0.55]
[1721598920053,1.048,3520.7,3520.3,0.841]
[1721598920261,1.048,3520.7,3520.6,2.84042]
[1721598922139,1.048,3520.7,3520.6,5.68084]
[1721598922555,1.048,3520.7,3520.6,2.84042]
[1721598923771,3.24984216,3521.6,3520.6,2.2854]
[1721598924070,8.37364216,3521.8,3521.0,2.84003]
[1721598924276,8.37364216,3521.8,3521.1,2.83995]
[1721598924440,7.48,3521.8,3521.1,2.83995]
[1721598925166,10.31946,3521.8,3521.0,2.84002]
[1721598925463,10.31946,3521.8,3521.3,2.83983]
[1721598925464,1.41951022,3521.7,3521.3,2.83983]
[1721598925676,1.41951022,3521.7,3521.0,2.8401]
[1721598925889,4.25907022,3521.7,3520.7,3.39029]
[1721598926179,1.41746702,3521.6,3520.7,3.39029]
[1721598926370,1.048,3521.0,3520.7,3.39029]
[1721598926731,1.048,3521.0,3520.9,2.84017]
[1721598928844,1.048,3521.0,3520.8,2.84024]
[1721598929050,1.048,3521.0,3520.7,3.39032]
[1721598929269,1.048,3520.8,3520.7,2.84032]
[1721598930196,1.048,3520.8,3520.7,2.612085]
[1721598930746,1.048,3521.0,3520.9,2.84012]
[1721598934393,2.3393,3521.7,3521.2,2.83992]
[1721598934592,1.048,3521.3,3521.2,2.83992]
[1721598936792,1.048,3521.3,3521.2,3.38994]
[1721598941089,1.048,3521.3,3521.2,6.22988]
[1721598943068,2.3313,3522.0,3521.2,0.55]
[1721598943303,2.3313,3522.0,3521.6,2.83961]
[1721598944785,1.048,3521.7,3521.6,2.83961]
[1721598947270,1.048,3521.8,3521.7,2.83953]
[1721598947609,19.89,3522.5,3521.8,2.83944]
[1721598947815,9.8281,3522.8,3522.1,2.83919]
[1721598947974,1.048,3522.2,3522.1,2.83919]
[1721598950415,1.048,3522.2,3521.8,2.83944]
[1721598950616,1.048,3522.0,3521.9,3.38937]
[1721598951890,2.83874,3522.7,3521.9,3.38937]
[1721598951891,2.83874,3522.7,3522.0,2.83924]
[1721598952080,1.048,3522.1,3521.8,2.83944]
[1721598952426,1.048,3521.9,3521.8,2.83944]
[1721598954712,1.048,3521.9,3521.6,2.83961]
[1721598954879,1.048,3521.9,3521.7,0.55]
[1721598955212,1.048,3521.9,3521.7,3.38952]
[1721598958821,0.048,3521.9,3521.7,3.38952]
[1721598959283,0.048,3521.9,3521.7,4.012449]
[1721598959481,0.048,3521.9,3521.7,0.622929]
[1721598960417,0.048,3521.9,3521.6,2.8396]
[1721598960981,2.83916,3522.2,3521.4,2.83977]
[1721598961186,2.83906,3522.3,3521.2,5.12353]
[1721598961187,1.048,3521.7,3521.5,2.83969]
[1721598962286,1.048,3521.7,3521.6,0.567953]
[1721598963517,1.048,3521.7,3521.5,2.83968]
[1721598963761,1.048,3521.7,3521.4,3.0]
[1721598965082,1.048,3521.5,3521.3,2.83984]
[1721598966401,1.048,3521.5,3521.0,2.84006]
[1721598966601,1.048,3521.3,3520.8,5.84022]
[1721598966812,3.3995,3521.3,3520.8,4.100602]
[1721598967032,1.048,3521.1,3520.8,1.100602]
[1721598967230,0.59437375,3521.9,3520.8,1.100602]
[1721598967231,1.19152288,3522.2,3521.3,2.3254]
[1721598967584,2.49020359,3523.8,3520.9,1.7420942]
[1721598967585,2.3515,3524.4,3523.3,2.83817]
[1721598967694,1.048,3523.3,3522.6,2.83879]
[1721598967893,1.048,3523.3,3522.6,0.87508513]
[1721598968220,1.048,3523.3,3523.0,2.83841]
[1721598969111,1.048,3523.3,3523.1,2.83836]
[1721598969290,1.048,3523.3,3523.0,2.83841]
[1721598969496,1.048,3523.3,3523.2,2.83832]
[1721598969836,1.048,3523.3,3523.1,2.83838]
[1721598970497,1.048,3523.3,3523.1,2.83833]
[1721598970833,1.048,3523.3,3522.6,0.87508513]
[1721598971033,1.048,3523.1,3522.9,2.83849]
[1721598971345,1.048,3523.1,3523.0,2.83848]
[1721598971841,1.048,3523.1,3522.7,2.83872]
[1721598972134,1.048,3522.8,3522.7,2.83872]
[1721598972492,1.048,3522.8,3522.7,5.83872]
[1721598973127,2.3515,3523.6,3522.8,2.83862]
[1721598973128,1.048,3523.0,3522.8,2.83862]
[1721598973326,1.048,3523.0,3522.9,2.83857]
[1721598973736,2.3515,3523.6,3523.0,2.83844]
[1721598973906,1.048,3523.1,3523.0,2.83844]
[1721598974714,2.3515,3523.6,3523.0,2.83844]
[1721598975001,2.3515,3523.6,3522.8,2.83864]
[1721598975002,1.048,3523.1,3522.8,2.83864]
[1721598976229,1.048,3523.1,3522.7,5.83871]
[1721598976415,1.048,3523.1,3522.8,2.83864]
[1721598976950,1.048,3522.9,3522.7,3.0]
[1721598977111,1.048,3522.9,3522.7,5.83869]
[1721598977837,1.048,3522.9,3522.0,2.83929]
[1721598978049,1.048,3522.6,3521.8,2.83945]
[1721598978419,1.048,3522.6,3522.1,2.83919]
[1721598978618,1.048,3522.6,3521.9,2.83935]
[1721598979116,1.048,3522.6,3521.8,2.83945]
[1721598979117,1.048,3522.6,3522.0,2.83927]
[1721598979520,1.048,3522.4,3521.8,2.83945]
[1721598979724,1.048,3522.4,3521.6,2.8396]
[1721598979931,1.048,3522.2,3521.7,2.8395]
[1721598980316,2.8389,3522.5,3521.8,2.83945]
[1721598981019,2.8389,3522.5,3521.5,2.83969]
[1721598981020,2.8389,3522.5,3521.6,2.83957]